{"text_format":"3","workbook":"xlsx","n_sheets":6,"sheets":["Dashboard","Salg","Indtægter","Udgifter","Skat","Kategorier"],"not_rendered":{"images":1,"defined_names":34},"read":"whole","date_system":"1900"}

{"sheet":"Dashboard","index":0,"n_rows":20,"n_cols":8,"rows_kept":20,"merged":[[0,2,0,4],[0,6,3,7],[5,1,5,7]]}
[null,"Driftsregnskab","For [måned eller år], der slutter [måned-dag-år]"]
[null,"Firmanavn","Angivet i tusindedele"]
[null,"Aktuel bruttoavance  [L-J]",{"$f":"IFERROR(IF(Samlet_bruttoresultat=0,\"-\",Samlet_bruttoresultat/Samlet_salgsomsætning),\"-\")","v":"-"}]
[null,"Aktuel fortjeneste ved salg [T/J]",{"$f":"IFERROR(IF(Nettooverskud=0,\"-\",Nettooverskud/Samlet_salgsomsætning),\"-\")","v":"-"}]
[]
[null,"Rediger ikke i kategorierne i dette regnearket, da det kan ødelægge formlerne. Brug regnearket Kategori til at tilføje kategorier og opdatere de tilsvarende regneark med poster. Regnearket opdateres automatisk."]
[null,"Oversigt","Samlet forudgående periode","Samlet budget","Samlet aktuel\nperiode","Samlet aktuel periode som % af salg","Samlet % ændret ift. Forudgående periode","Samlet % ændret ift. budget"]
[null,"Samlet salgsomsætning  [J]",{"$f":"SUMIFS(Salgsomsætning_1[Forudgående periode],Salgsomsætning_1[Omsætningstype],\"Salgsomsætning\")","v":0},{"$f":"SUMIFS(Salgsomsætning_1[Budget],Salgsomsætning_1[Omsætningstype],\"Salgsomsætning\")","v":0},{"$f":"SUMIFS(Salgsomsætning_1[Aktuel periode],Salgsomsætning_1[Omsætningstype],\"Salgsomsætning\")","v":0},{"$f":"SUMIFS(Salgsomsætning_1[Aktuel periode som % af salg],Salgsomsætning_1[Omsætningstype],\"Salgsomsætning\")","v":{"v":0,"d":"0.00%"}},{"$f":"SUMIFS(Salgsomsætning_1[% ændret ift. forudgående periode],Salgsomsætning_1[Omsætningstype],\"Salgsomsætning\")","v":{"v":0,"d":"0.00%"}},{"$f":"SUMIFS(Salgsomsætning_1[% ændret ift. budget],Salgsomsætning_1[Omsætningstype],\"Salgsomsætning\")","v":{"v":0,"d":"0.00%"}}]
[null,"Samlede salgsomkostninger  [K]",{"$f":"SUMIFS(Salgsomsætning_1[Forudgående periode],Salgsomsætning_1[Omsætningstype],\"Salgsomkostninger\")","v":0},{"$f":"SUMIFS(Salgsomsætning_1[Budget],Salgsomsætning_1[Omsætningstype],\"Salgsomkostninger\")","v":0},{"$f":"SUMIFS(Salgsomsætning_1[Aktuel periode],Salgsomsætning_1[Omsætningstype],\"Salgsomkostninger\")","v":0},{"$f":"SUMIFS(Salgsomsætning_1[Aktuel periode som % af salg],Salgsomsætning_1[Omsætningstype],\"Salgsomkostninger\")","v":{"v":0,"d":"0.00%"}},{"$f":"SUMIFS(Salgsomsætning_1[% ændret ift. forudgående periode],Salgsomsætning_1[Omsætningstype],\"Salgsomkostninger\")","v":{"v":0,"d":"0.00%"}},{"$f":"SUMIFS(Salgsomsætning_1[% ændret ift. budget],Salgsomsætning_1[Omsætningstype],\"Salgsomkostninger\")","v":{"v":0,"d":"0.00%"}}]
[null,"Samlede salg- og marketingudgifter  [M]",{"$f":"SUMIFS(Driftsudgifter[Forudgående periode],Driftsudgifter[Udgiftstype],\"Salg og marketing\")","v":0},{"$f":"SUMIFS(Driftsudgifter[Budget],Driftsudgifter[Udgiftstype],\"Salg og marketing\")","v":0},{"$f":"SUMIFS(Driftsudgifter[Aktuel periode],Driftsudgifter[Udgiftstype],\"Salg og marketing\")","v":0},{"$f":"SUMIFS(Driftsudgifter[Aktuel periode som % af salg],Driftsudgifter[Udgiftstype],\"Salg og marketing\")","v":{"v":0,"d":"0.00%"}},{"$f":"SUMIFS(Driftsudgifter[% ændret ift. forudgående periode],Driftsudgifter[Udgiftstype],\"Salg og marketing\")","v":{"v":0,"d":"0.00%"}},{"$f":"SUMIFS(Driftsudgifter[% ændret ift. budget],Driftsudgifter[Udgiftstype],\"Salg og marketing\")","v":{"v":0,"d":"0.00%"}}]
[null,"Samlede forsknings- og udviklingsudgifter  [N]",{"$f":"SUMIFS(Driftsudgifter[Forudgående periode],Driftsudgifter[Udgiftstype],\"Forskning og udvikling\")","v":0},{"$f":"SUMIFS(Driftsudgifter[Budget],Driftsudgifter[Udgiftstype],\"Forskning og udvikling\")","v":0},{"$f":"SUMIFS(Driftsudgifter[Aktuel periode],Driftsudgifter[Udgiftstype],\"Forskning og udvikling\")","v":0},{"$f":"SUMIFS(Driftsudgifter[Aktuel periode som % af salg],Driftsudgifter[Udgiftstype],\"Forskning og udvikling\")","v":{"v":0,"d":"0.00%"}},{"$f":"SUMIFS(Driftsudgifter[% ændret ift. forudgående periode],Driftsudgifter[Udgiftstype],\"Forskning og udvikling\")","v":{"v":0,"d":"0.00%"}},{"$f":"SUMIFS(Driftsudgifter[% ændret ift. budget],Driftsudgifter[Udgiftstype],\"Forskning og udvikling\")","v":{"v":0,"d":"0.00%"}}]
[null,"Samlede generelle og administrative udgifter  [O]",{"$f":"SUMIFS(Driftsudgifter[Forudgående periode],Driftsudgifter[Udgiftstype],\"General and Adminstrative\")","v":0},{"$f":"SUMIFS(Driftsudgifter[Budget],Driftsudgifter[Udgiftstype],\"General and Adminstrative\")","v":0},{"$f":"SUMIFS(Driftsudgifter[Aktuel periode],Driftsudgifter[Udgiftstype],\"General and Adminstrative\")","v":0},{"$f":"SUMIFS(Driftsudgifter[Aktuel periode som % af salg],Driftsudgifter[Udgiftstype],\"General and Adminstrative\")","v":{"v":0,"d":"0.00%"}},{"$f":"SUMIFS(Driftsudgifter[% ændret ift. forudgående periode],Driftsudgifter[Udgiftstype],\"General and Adminstrative\")","v":{"v":0,"d":"0.00%"}},{"$f":"SUMIFS(Driftsudgifter[% ændret ift. budget],Driftsudgifter[Udgiftstype],\"General and Adminstrative\")","v":{"v":0,"d":"0.00%"}}]
[null,"Samlede øvrige driftsudgifter[P]",{"$f":"Driftsudgifter[[#Totals],[Forudgående periode]]-SUM(C10:C12)","v":0},{"$f":"Driftsudgifter[[#Totals],[Budget]]-SUM(D10:D12)","v":0},{"$f":"Driftsudgifter[[#Totals],[Aktuel periode]]-SUM(E10:E12)","v":0},{"$f":"Driftsudgifter[[#Totals],[Aktuel periode som % af salg]]-SUM(F10:F12)","v":{"v":0,"d":"0.00%"}},{"$f":"Driftsudgifter[[#Totals],[% ændret ift. forudgående periode]]-SUM(G10:G12)","v":{"v":0,"d":"0.00%"}},{"$f":"Driftsudgifter[[#Totals],[% ændret ift. budget]]-SUM(H10:H12)","v":{"v":0,"d":"0.00%"}}]
[null,"Øvrige indtægter  [S]",{"$f":"Indtægt[[#Totals],[Forudgående periode]]","v":0},{"$f":"Indtægt[[#Totals],[Budget]]","v":0},{"$f":"Indtægt[[#Totals],[Aktuel periode]]","v":0},{"$f":"Indtægt[[#Totals],[Aktuel periode som % af salg]]","v":{"v":0,"d":"0.00%"}},{"$f":"Indtægt[[#Totals],[% ændret ift. forudgående periode]]","v":{"v":0,"d":"0.00%"}},{"$f":"Indtægt[[#Totals],[% ændret ift. budget]]","v":{"v":0,"d":"0.00%"}}]
[null,"Samlet skat  [T]",{"$f":"Skatter[[#Totals],[Forudgående periode]]","v":0},{"$f":"Skatter[[#Totals],[Budget]]","v":0},{"$f":"Skatter[[#Totals],[Aktuel periode]]","v":0},{"$f":"Skatter[[#Totals],[Aktuel periode som % af salg]]","v":{"v":0,"d":"0.00%"}},{"$f":"Skatter[[#Totals],[% ændret ift. forudgående periode]]","v":{"v":0,"d":"0.00%"}},{"$f":"Skatter[[#Totals],[% ændret ift. budget]]","v":{"v":0,"d":"0.00%"}}]
[]
[null,"Bruttoresultat  [L=J-K]",{"$f":"IFERROR(C8-C9,\"-\")","v":0},{"$f":"IFERROR(D8-D9,\"-\")","v":0},{"$f":"IFERROR(Samlet_salgsomsætning-Samlede_salgsomkostninger,\"-\")","v":0},{"$f":"IFERROR(IF(Samlet_salgsomsætning=0,\"0.00%\",Samlet_bruttoresultat/Samlet_salgsomsætning),\"-\")","v":"0.00%"},{"$f":"IFERROR(IF(C17=Samlet_bruttoresultat,0,IF(Samlet_bruttoresultat>C17,ABS((Samlet_bruttoresultat/C17)-1),IF(AND(Samlet_bruttoresultat<C17,C17<0),-((Samlet_bruttoresultat/C17)-1),(Samlet_bruttoresultat/C17)-1))),\"-\")","v":{"v":0,"d":"0.00%"}},{"$f":"IFERROR(IF(D17=Samlet_bruttoresultat,0,IF(Samlet_bruttoresultat>D17,ABS((Samlet_bruttoresultat/D17)-1),IF(AND(Samlet_bruttoresultat<D17,D17<0),-((Samlet_bruttoresultat/D17)-1),(Samlet_bruttoresultat/D17)-1))),\"-\")","v":{"v":0,"d":"0.00%"}}]
[null,"Samlede driftsudgifter  [Q=M+N+O+P]",{"$f":"IFERROR(C10+C11+C12+C13,\"-\")","v":0},{"$f":"IFERROR(D10+D11+D12+D13,\"-\")","v":0},{"$f":"IFERROR(Samlet_salg_og_marketing+Samlet_forskning_og_udvikling+Samlet_generelt_og_administrativt+Samlede_øvrige_udgifter,\"-\")","v":0},{"$f":"IFERROR(IF(Samlet_salgsomsætning=0,\"0.00%\",Samlede_driftsudgifter/Samlet_salgsomsætning),\"-\")","v":"0.00%"},{"$f":"IFERROR(IF(C18=Samlede_driftsudgifter,0,IF(Samlede_driftsudgifter>C18,ABS((Samlede_driftsudgifter/C18)-1),IF(AND(Samlede_driftsudgifter<C18,C18<0),-((Samlede_driftsudgifter/C18)-1),(Samlede_driftsudgifter/C18)-1))),\"-\")","v":{"v":0,"d":"0.00%"}},{"$f":"IFERROR(IF(D18=Samlede_driftsudgifter,0,IF(Samlede_driftsudgifter>D18,ABS((Samlede_driftsudgifter/D18)-1),IF(AND(Samlede_driftsudgifter<D18,D18<0),-((Samlede_driftsudgifter/D18)-1),(Samlede_driftsudgifter/D18)-1))),\"-\")","v":{"v":0,"d":"0.00%"}}]
[null,"Indtægter fra driften  [R=L-Q]",{"$f":"IFERROR(C17-C18,\"-\")","v":0},{"$f":"IFERROR(D17-D18,\"-\")","v":0},{"$f":"IFERROR(Samlet_bruttoresultat-Samlede_driftsudgifter,\"-\")","v":0},{"$f":"IFERROR(IF(Samlet_salgsomsætning=0,\"0.00%\",Samlede_indtægter_fra_driften/Samlet_salgsomsætning),\"-\")","v":"0.00%"},{"$f":"IFERROR(IF(C19=Samlede_indtægter_fra_driften,0,IF(Samlede_indtægter_fra_driften>C19,ABS((Samlede_indtægter_fra_driften/C19)-1),IF(AND(Samlede_indtægter_fra_driften<C19,C19<0),-((Samlede_indtægter_fra_driften/C19)-1),(Samlede_indtægter_fra_driften/C19)-1))),\"-\")","v":{"v":0,"d":"0.00%"}},{"$f":"IFERROR(IF(D19=Samlede_indtægter_fra_driften,0,IF(Samlede_indtægter_fra_driften>D19,ABS((Samlede_indtægter_fra_driften/D19)-1),IF(AND(Samlede_indtægter_fra_driften<D19,D19<0),-((Samlede_indtægter_fra_driften/D19)-1),(Samlede_indtægter_fra_driften/D19)-1))),\"-\")","v":{"v":0,"d":"0.00%"}}]
[null,"Nettooverskud  [U=R+S-T]",{"$f":"IFERROR(C19+C14-C15,\"-\")","v":0},{"$f":"IFERROR(D19+D14-D15,\"-\")","v":0},{"$f":"Samlede_indtægter_fra_driften+Samlede_øvrige_indtægter-Samlet_skat","v":0},{"$f":"IFERROR(IF(Samlet_salgsomsætning=0,\"0.00%\",Nettooverskud/Samlet_salgsomsætning),\"-\")","v":"0.00%"},{"$f":"IFERROR(IF(C20=Nettooverskud,0,IF(Nettooverskud>C20,ABS((Nettooverskud/C20)-1),IF(AND(Nettooverskud<C20,C20<0),-((Nettooverskud/C20)-1),(Nettooverskud/C20)-1))),\"-\")","v":{"v":0,"d":"0.00%"}},{"$f":"IFERROR(IF(D20=Nettooverskud,0,IF(Nettooverskud>D20,ABS((Nettooverskud/D20)-1),IF(AND(Nettooverskud<D20,D20<0),-((Nettooverskud/D20)-1),(Nettooverskud/D20)-1))),\"-\")","v":{"v":0,"d":"0.00%"}}]

{"sheet":"Salg","index":1,"n_rows":13,"n_cols":9,"rows_kept":13,"merged":[[0,7,2,8]]}
[null,{"$f":"Projektmappe_Titel","v":"Driftsregnskab"}]
[null,{"$f":"Firmanavn","v":"Firmanavn"},"Angivet i tusindedele"]
[null,"Salgsomsætning",{"$f":"IFERROR(Salgsomsætning,\"-\")","v":0}]
[null,"Omsætningstype","Beskrivelse","Forudgående periode","Budget","Aktuel periode","Aktuel periode som % af salg","% ændret ift. forudgående periode","% ændret ift. budget"]
[null,"Salgsomsætning","Produkt/tjeneste 1",{"$nulls":3},{"$f":"IFERROR(IF(Salgsomsætning_1[[#Totals],[Aktuel periode]]=0,\"-\",Salgsomsætning_1[[#This Row],[Aktuel periode]]/Salgsomsætning),\"-\")","v":"-"},{"$f":"IFERROR(IF(Salgsomsætning_1[[#This Row],[Forudgående periode]]=Salgsomsætning_1[[#This Row],[Aktuel periode]],0,IF(Salgsomsætning_1[[#This Row],[Aktuel periode]]>Salgsomsætning_1[[#This Row],[Forudgående periode]],ABS((Salgsomsætning_1[[#This Row],[Aktuel periode]]/Salgsomsætning_1[[#This Row],[Forudgående periode]])-1),IF(AND(Salgsomsætning_1[[#This Row],[Aktuel periode]]<Salgsomsætning_1[[#This Row],[Forudgående periode]],Salgsomsætning_1[[#This Row],[Forudgående periode]]<0),-((Salgsomsætning_1[[#This Row],[Aktuel periode]]/Salgsomsætning_1[[#This Row],[Forudgående periode]])-1),(Salgsomsætning_1[[#This Row],[Aktuel periode]]/Salgsomsætning_1[[#This Row],[Forudgående periode]])-1))),\"-\")","v":{"v":0,"d":"0.00%"}},{"$f":"IFERROR(IF(Salgsomsætning_1[[#This Row],[Budget]]=Salgsomsætning_1[[#This Row],[Aktuel periode]],0,IF(Salgsomsætning_1[[#This Row],[Aktuel periode]]>Salgsomsætning_1[[#This Row],[Budget]],ABS((Salgsomsætning_1[[#This Row],[Aktuel periode]]/Salgsomsætning_1[[#This Row],[Budget]])-1),IF(AND(Salgsomsætning_1[[#This Row],[Aktuel periode]]<Salgsomsætning_1[[#This Row],[Budget]],Salgsomsætning_1[[#This Row],[Budget]]<0),-((Salgsomsætning_1[[#This Row],[Aktuel periode]]/Salgsomsætning_1[[#This Row],[Budget]])-1),(Salgsomsætning_1[[#This Row],[Aktuel periode]]/Salgsomsætning_1[[#This Row],[Budget]])-1))),\"-\")","v":{"v":0,"d":"0.00%"}}]
[null,"Salgsomsætning","Produkt/tjeneste 2",{"$nulls":3},{"$f":"IFERROR(IF(Salgsomsætning_1[[#Totals],[Aktuel periode]]=0,\"-\",Salgsomsætning_1[[#This Row],[Aktuel periode]]/Salgsomsætning),\"-\")","v":"-"},{"$f":"IFERROR(IF(Salgsomsætning_1[[#This Row],[Forudgående periode]]=Salgsomsætning_1[[#This Row],[Aktuel periode]],0,IF(Salgsomsætning_1[[#This Row],[Aktuel periode]]>Salgsomsætning_1[[#This Row],[Forudgående periode]],ABS((Salgsomsætning_1[[#This Row],[Aktuel periode]]/Salgsomsætning_1[[#This Row],[Forudgående periode]])-1),IF(AND(Salgsomsætning_1[[#This Row],[Aktuel periode]]<Salgsomsætning_1[[#This Row],[Forudgående periode]],Salgsomsætning_1[[#This Row],[Forudgående periode]]<0),-((Salgsomsætning_1[[#This Row],[Aktuel periode]]/Salgsomsætning_1[[#This Row],[Forudgående periode]])-1),(Salgsomsætning_1[[#This Row],[Aktuel periode]]/Salgsomsætning_1[[#This Row],[Forudgående periode]])-1))),\"-\")","v":{"v":0,"d":"0.00%"}},{"$f":"IFERROR(IF(Salgsomsætning_1[[#This Row],[Budget]]=Salgsomsætning_1[[#This Row],[Aktuel periode]],0,IF(Salgsomsætning_1[[#This Row],[Aktuel periode]]>Salgsomsætning_1[[#This Row],[Budget]],ABS((Salgsomsætning_1[[#This Row],[Aktuel periode]]/Salgsomsætning_1[[#This Row],[Budget]])-1),IF(AND(Salgsomsætning_1[[#This Row],[Aktuel periode]]<Salgsomsætning_1[[#This Row],[Budget]],Salgsomsætning_1[[#This Row],[Budget]]<0),-((Salgsomsætning_1[[#This Row],[Aktuel periode]]/Salgsomsætning_1[[#This Row],[Budget]])-1),(Salgsomsætning_1[[#This Row],[Aktuel periode]]/Salgsomsætning_1[[#This Row],[Budget]])-1))),\"-\")","v":{"v":0,"d":"0.00%"}}]
[null,"Salgsomsætning","Produkt/tjeneste 3",{"$nulls":3},{"$f":"IFERROR(IF(Salgsomsætning_1[[#Totals],[Aktuel periode]]=0,\"-\",Salgsomsætning_1[[#This Row],[Aktuel periode]]/Salgsomsætning),\"-\")","v":"-"},{"$f":"IFERROR(IF(Salgsomsætning_1[[#This Row],[Forudgående periode]]=Salgsomsætning_1[[#This Row],[Aktuel periode]],0,IF(Salgsomsætning_1[[#This Row],[Aktuel periode]]>Salgsomsætning_1[[#This Row],[Forudgående periode]],ABS((Salgsomsætning_1[[#This Row],[Aktuel periode]]/Salgsomsætning_1[[#This Row],[Forudgående periode]])-1),IF(AND(Salgsomsætning_1[[#This Row],[Aktuel periode]]<Salgsomsætning_1[[#This Row],[Forudgående periode]],Salgsomsætning_1[[#This Row],[Forudgående periode]]<0),-((Salgsomsætning_1[[#This Row],[Aktuel periode]]/Salgsomsætning_1[[#This Row],[Forudgående periode]])-1),(Salgsomsætning_1[[#This Row],[Aktuel periode]]/Salgsomsætning_1[[#This Row],[Forudgående periode]])-1))),\"-\")","v":{"v":0,"d":"0.00%"}},{"$f":"IFERROR(IF(Salgsomsætning_1[[#This Row],[Budget]]=Salgsomsætning_1[[#This Row],[Aktuel periode]],0,IF(Salgsomsætning_1[[#This Row],[Aktuel periode]]>Salgsomsætning_1[[#This Row],[Budget]],ABS((Salgsomsætning_1[[#This Row],[Aktuel periode]]/Salgsomsætning_1[[#This Row],[Budget]])-1),IF(AND(Salgsomsætning_1[[#This Row],[Aktuel periode]]<Salgsomsætning_1[[#This Row],[Budget]],Salgsomsætning_1[[#This Row],[Budget]]<0),-((Salgsomsætning_1[[#This Row],[Aktuel periode]]/Salgsomsætning_1[[#This Row],[Budget]])-1),(Salgsomsætning_1[[#This Row],[Aktuel periode]]/Salgsomsætning_1[[#This Row],[Budget]])-1))),\"-\")","v":{"v":0,"d":"0.00%"}}]
[null,"Salgsomsætning","Produkt/tjeneste 4",{"$nulls":3},{"$f":"IFERROR(IF(Salgsomsætning_1[[#Totals],[Aktuel periode]]=0,\"-\",Salgsomsætning_1[[#This Row],[Aktuel periode]]/Salgsomsætning),\"-\")","v":"-"},{"$f":"IFERROR(IF(Salgsomsætning_1[[#This Row],[Forudgående periode]]=Salgsomsætning_1[[#This Row],[Aktuel periode]],0,IF(Salgsomsætning_1[[#This Row],[Aktuel periode]]>Salgsomsætning_1[[#This Row],[Forudgående periode]],ABS((Salgsomsætning_1[[#This Row],[Aktuel periode]]/Salgsomsætning_1[[#This Row],[Forudgående periode]])-1),IF(AND(Salgsomsætning_1[[#This Row],[Aktuel periode]]<Salgsomsætning_1[[#This Row],[Forudgående periode]],Salgsomsætning_1[[#This Row],[Forudgående periode]]<0),-((Salgsomsætning_1[[#This Row],[Aktuel periode]]/Salgsomsætning_1[[#This Row],[Forudgående periode]])-1),(Salgsomsætning_1[[#This Row],[Aktuel periode]]/Salgsomsætning_1[[#This Row],[Forudgående periode]])-1))),\"-\")","v":{"v":0,"d":"0.00%"}},{"$f":"IFERROR(IF(Salgsomsætning_1[[#This Row],[Budget]]=Salgsomsætning_1[[#This Row],[Aktuel periode]],0,IF(Salgsomsætning_1[[#This Row],[Aktuel periode]]>Salgsomsætning_1[[#This Row],[Budget]],ABS((Salgsomsætning_1[[#This Row],[Aktuel periode]]/Salgsomsætning_1[[#This Row],[Budget]])-1),IF(AND(Salgsomsætning_1[[#This Row],[Aktuel periode]]<Salgsomsætning_1[[#This Row],[Budget]],Salgsomsætning_1[[#This Row],[Budget]]<0),-((Salgsomsætning_1[[#This Row],[Aktuel periode]]/Salgsomsætning_1[[#This Row],[Budget]])-1),(Salgsomsætning_1[[#This Row],[Aktuel periode]]/Salgsomsætning_1[[#This Row],[Budget]])-1))),\"-\")","v":{"v":0,"d":"0.00%"}}]
[null,"Salgsomkostninger","Produkt/tjeneste 1",{"$nulls":3},{"$f":"IFERROR(IF(Salgsomsætning_1[[#Totals],[Aktuel periode]]=0,\"-\",Salgsomsætning_1[[#This Row],[Aktuel periode]]/Salgsomsætning),\"-\")","v":"-"},{"$f":"IFERROR(IF(Salgsomsætning_1[[#This Row],[Forudgående periode]]=Salgsomsætning_1[[#This Row],[Aktuel periode]],0,IF(Salgsomsætning_1[[#This Row],[Aktuel periode]]>Salgsomsætning_1[[#This Row],[Forudgående periode]],ABS((Salgsomsætning_1[[#This Row],[Aktuel periode]]/Salgsomsætning_1[[#This Row],[Forudgående periode]])-1),IF(AND(Salgsomsætning_1[[#This Row],[Aktuel periode]]<Salgsomsætning_1[[#This Row],[Forudgående periode]],Salgsomsætning_1[[#This Row],[Forudgående periode]]<0),-((Salgsomsætning_1[[#This Row],[Aktuel periode]]/Salgsomsætning_1[[#This Row],[Forudgående periode]])-1),(Salgsomsætning_1[[#This Row],[Aktuel periode]]/Salgsomsætning_1[[#This Row],[Forudgående periode]])-1))),\"-\")","v":{"v":0,"d":"0.00%"}},{"$f":"IFERROR(IF(Salgsomsætning_1[[#This Row],[Budget]]=Salgsomsætning_1[[#This Row],[Aktuel periode]],0,IF(Salgsomsætning_1[[#This Row],[Aktuel periode]]>Salgsomsætning_1[[#This Row],[Budget]],ABS((Salgsomsætning_1[[#This Row],[Aktuel periode]]/Salgsomsætning_1[[#This Row],[Budget]])-1),IF(AND(Salgsomsætning_1[[#This Row],[Aktuel periode]]<Salgsomsætning_1[[#This Row],[Budget]],Salgsomsætning_1[[#This Row],[Budget]]<0),-((Salgsomsætning_1[[#This Row],[Aktuel periode]]/Salgsomsætning_1[[#This Row],[Budget]])-1),(Salgsomsætning_1[[#This Row],[Aktuel periode]]/Salgsomsætning_1[[#This Row],[Budget]])-1))),\"-\")","v":{"v":0,"d":"0.00%"}}]
[null,"Salgsomkostninger","Produkt/tjeneste 2",{"$nulls":3},{"$f":"IFERROR(IF(Salgsomsætning_1[[#Totals],[Aktuel periode]]=0,\"-\",Salgsomsætning_1[[#This Row],[Aktuel periode]]/Salgsomsætning),\"-\")","v":"-"},{"$f":"IFERROR(IF(Salgsomsætning_1[[#This Row],[Forudgående periode]]=Salgsomsætning_1[[#This Row],[Aktuel periode]],0,IF(Salgsomsætning_1[[#This Row],[Aktuel periode]]>Salgsomsætning_1[[#This Row],[Forudgående periode]],ABS((Salgsomsætning_1[[#This Row],[Aktuel periode]]/Salgsomsætning_1[[#This Row],[Forudgående periode]])-1),IF(AND(Salgsomsætning_1[[#This Row],[Aktuel periode]]<Salgsomsætning_1[[#This Row],[Forudgående periode]],Salgsomsætning_1[[#This Row],[Forudgående periode]]<0),-((Salgsomsætning_1[[#This Row],[Aktuel periode]]/Salgsomsætning_1[[#This Row],[Forudgående periode]])-1),(Salgsomsætning_1[[#This Row],[Aktuel periode]]/Salgsomsætning_1[[#This Row],[Forudgående periode]])-1))),\"-\")","v":{"v":0,"d":"0.00%"}},{"$f":"IFERROR(IF(Salgsomsætning_1[[#This Row],[Budget]]=Salgsomsætning_1[[#This Row],[Aktuel periode]],0,IF(Salgsomsætning_1[[#This Row],[Aktuel periode]]>Salgsomsætning_1[[#This Row],[Budget]],ABS((Salgsomsætning_1[[#This Row],[Aktuel periode]]/Salgsomsætning_1[[#This Row],[Budget]])-1),IF(AND(Salgsomsætning_1[[#This Row],[Aktuel periode]]<Salgsomsætning_1[[#This Row],[Budget]],Salgsomsætning_1[[#This Row],[Budget]]<0),-((Salgsomsætning_1[[#This Row],[Aktuel periode]]/Salgsomsætning_1[[#This Row],[Budget]])-1),(Salgsomsætning_1[[#This Row],[Aktuel periode]]/Salgsomsætning_1[[#This Row],[Budget]])-1))),\"-\")","v":{"v":0,"d":"0.00%"}}]
[null,"Salgsomkostninger","Produkt/tjeneste 3",{"$nulls":3},{"$f":"IFERROR(IF(Salgsomsætning_1[[#Totals],[Aktuel periode]]=0,\"-\",Salgsomsætning_1[[#This Row],[Aktuel periode]]/Salgsomsætning),\"-\")","v":"-"},{"$f":"IFERROR(IF(Salgsomsætning_1[[#This Row],[Forudgående periode]]=Salgsomsætning_1[[#This Row],[Aktuel periode]],0,IF(Salgsomsætning_1[[#This Row],[Aktuel periode]]>Salgsomsætning_1[[#This Row],[Forudgående periode]],ABS((Salgsomsætning_1[[#This Row],[Aktuel periode]]/Salgsomsætning_1[[#This Row],[Forudgående periode]])-1),IF(AND(Salgsomsætning_1[[#This Row],[Aktuel periode]]<Salgsomsætning_1[[#This Row],[Forudgående periode]],Salgsomsætning_1[[#This Row],[Forudgående periode]]<0),-((Salgsomsætning_1[[#This Row],[Aktuel periode]]/Salgsomsætning_1[[#This Row],[Forudgående periode]])-1),(Salgsomsætning_1[[#This Row],[Aktuel periode]]/Salgsomsætning_1[[#This Row],[Forudgående periode]])-1))),\"-\")","v":{"v":0,"d":"0.00%"}},{"$f":"IFERROR(IF(Salgsomsætning_1[[#This Row],[Budget]]=Salgsomsætning_1[[#This Row],[Aktuel periode]],0,IF(Salgsomsætning_1[[#This Row],[Aktuel periode]]>Salgsomsætning_1[[#This Row],[Budget]],ABS((Salgsomsætning_1[[#This Row],[Aktuel periode]]/Salgsomsætning_1[[#This Row],[Budget]])-1),IF(AND(Salgsomsætning_1[[#This Row],[Aktuel periode]]<Salgsomsætning_1[[#This Row],[Budget]],Salgsomsætning_1[[#This Row],[Budget]]<0),-((Salgsomsætning_1[[#This Row],[Aktuel periode]]/Salgsomsætning_1[[#This Row],[Budget]])-1),(Salgsomsætning_1[[#This Row],[Aktuel periode]]/Salgsomsætning_1[[#This Row],[Budget]])-1))),\"-\")","v":{"v":0,"d":"0.00%"}}]
[null,"Salgsomkostninger","Produkt/tjeneste 4",{"$nulls":3},{"$f":"IFERROR(IF(Salgsomsætning_1[[#Totals],[Aktuel periode]]=0,\"-\",Salgsomsætning_1[[#This Row],[Aktuel periode]]/Salgsomsætning),\"-\")","v":"-"},{"$f":"IFERROR(IF(Salgsomsætning_1[[#This Row],[Forudgående periode]]=Salgsomsætning_1[[#This Row],[Aktuel periode]],0,IF(Salgsomsætning_1[[#This Row],[Aktuel periode]]>Salgsomsætning_1[[#This Row],[Forudgående periode]],ABS((Salgsomsætning_1[[#This Row],[Aktuel periode]]/Salgsomsætning_1[[#This Row],[Forudgående periode]])-1),IF(AND(Salgsomsætning_1[[#This Row],[Aktuel periode]]<Salgsomsætning_1[[#This Row],[Forudgående periode]],Salgsomsætning_1[[#This Row],[Forudgående periode]]<0),-((Salgsomsætning_1[[#This Row],[Aktuel periode]]/Salgsomsætning_1[[#This Row],[Forudgående periode]])-1),(Salgsomsætning_1[[#This Row],[Aktuel periode]]/Salgsomsætning_1[[#This Row],[Forudgående periode]])-1))),\"-\")","v":{"v":0,"d":"0.00%"}},{"$f":"IFERROR(IF(Salgsomsætning_1[[#This Row],[Budget]]=Salgsomsætning_1[[#This Row],[Aktuel periode]],0,IF(Salgsomsætning_1[[#This Row],[Aktuel periode]]>Salgsomsætning_1[[#This Row],[Budget]],ABS((Salgsomsætning_1[[#This Row],[Aktuel periode]]/Salgsomsætning_1[[#This Row],[Budget]])-1),IF(AND(Salgsomsætning_1[[#This Row],[Aktuel periode]]<Salgsomsætning_1[[#This Row],[Budget]],Salgsomsætning_1[[#This Row],[Budget]]<0),-((Salgsomsætning_1[[#This Row],[Aktuel periode]]/Salgsomsætning_1[[#This Row],[Budget]])-1),(Salgsomsætning_1[[#This Row],[Aktuel periode]]/Salgsomsætning_1[[#This Row],[Budget]])-1))),\"-\")","v":{"v":0,"d":"0.00%"}}]
[null,"Samlet salgsomsætning",null,{"$f":"SUBTOTAL(109,Salgsomsætning_1[Forudgående periode])","v":0},{"$f":"SUBTOTAL(109,Salgsomsætning_1[Budget])","v":0},{"$f":"SUBTOTAL(109,Salgsomsætning_1[Aktuel periode])","v":0},{"$f":"SUBTOTAL(109,Salgsomsætning_1[Aktuel periode som % af salg])","v":{"v":0,"d":"0.00%"}},{"$f":"SUBTOTAL(109,Salgsomsætning_1[% ændret ift. forudgående periode])","v":{"v":0,"d":"0.00%"}},{"$f":"SUBTOTAL(109,Salgsomsætning_1[% ændret ift. budget])","v":{"v":0,"d":"0.00%"}}]

{"sheet":"Indtægter","index":2,"n_rows":7,"n_cols":9,"rows_kept":7,"merged":[[0,7,2,8]]}
[null,{"$f":"Projektmappe_Titel","v":"Driftsregnskab"}]
[null,{"$f":"Firmanavn","v":"Firmanavn"},"Angivet i tusindedele"]
[null,"Indtægter",{"$f":"IFERROR(Indtægt[[#Totals],[Aktuel periode]],\"-\")","v":0}]
[null,"Indtægtstype","Beskrivelse","Forudgående periode","Budget","Aktuel periode","Aktuel periode som % af salg","% ændret ift. forudgående periode","% ændret ift. budget"]
[null,"Indtægter","Øvrige indtægter",{"$nulls":3},{"$f":"IFERROR(IF(Salgsomsætning=0,\"-\",Indtægt[[#This Row],[Aktuel periode]]/Salgsomsætning),\"-\")","v":"-"},{"$f":"IFERROR(IF(Indtægt[[#This Row],[Forudgående periode]]=Indtægt[[#This Row],[Aktuel periode]],0,IF(Indtægt[[#This Row],[Aktuel periode]]>Indtægt[[#This Row],[Forudgående periode]],ABS((Indtægt[[#This Row],[Aktuel periode]]/Indtægt[[#This Row],[Forudgående periode]])-1),IF(AND(Indtægt[[#This Row],[Aktuel periode]]<Indtægt[[#This Row],[Forudgående periode]],Indtægt[[#This Row],[Forudgående periode]]<0),-((Indtægt[[#This Row],[Aktuel periode]]/Indtægt[[#This Row],[Forudgående periode]])-1),(Indtægt[[#This Row],[Aktuel periode]]/Indtægt[[#This Row],[Forudgående periode]])-1))),\"-\")","v":{"v":0,"d":"0.00%"}},{"$f":"IFERROR(IF(Indtægt[[#This Row],[Budget]]=Indtægt[[#This Row],[Aktuel periode]],0,IF(Indtægt[[#This Row],[Aktuel periode]]>Indtægt[[#This Row],[Budget]],ABS((Indtægt[[#This Row],[Aktuel periode]]/Indtægt[[#This Row],[Budget]])-1),IF(AND(Indtægt[[#This Row],[Aktuel periode]]<Indtægt[[#This Row],[Budget]],Indtægt[[#This Row],[Budget]]<0),-((Indtægt[[#This Row],[Aktuel periode]]/Indtægt[[#This Row],[Budget]])-1),(Indtægt[[#This Row],[Aktuel periode]]/Indtægt[[#This Row],[Budget]])-1))),\"-\")","v":{"v":0,"d":"0.00%"}}]
[{"$nulls":6},{"$f":"IFERROR(IF(Salgsomsætning=0,\"-\",Indtægt[[#This Row],[Aktuel periode]]/Salgsomsætning),\"-\")","v":"-"},{"$f":"IFERROR(IF(Indtægt[[#This Row],[Forudgående periode]]=Indtægt[[#This Row],[Aktuel periode]],0,IF(Indtægt[[#This Row],[Aktuel periode]]>Indtægt[[#This Row],[Forudgående periode]],ABS((Indtægt[[#This Row],[Aktuel periode]]/Indtægt[[#This Row],[Forudgående periode]])-1),IF(AND(Indtægt[[#This Row],[Aktuel periode]]<Indtægt[[#This Row],[Forudgående periode]],Indtægt[[#This Row],[Forudgående periode]]<0),-((Indtægt[[#This Row],[Aktuel periode]]/Indtægt[[#This Row],[Forudgående periode]])-1),(Indtægt[[#This Row],[Aktuel periode]]/Indtægt[[#This Row],[Forudgående periode]])-1))),\"-\")","v":{"v":0,"d":"0.00%"}},{"$f":"IFERROR(IF(Indtægt[[#This Row],[Budget]]=Indtægt[[#This Row],[Aktuel periode]],0,IF(Indtægt[[#This Row],[Aktuel periode]]>Indtægt[[#This Row],[Budget]],ABS((Indtægt[[#This Row],[Aktuel periode]]/Indtægt[[#This Row],[Budget]])-1),IF(AND(Indtægt[[#This Row],[Aktuel periode]]<Indtægt[[#This Row],[Budget]],Indtægt[[#This Row],[Budget]]<0),-((Indtægt[[#This Row],[Aktuel periode]]/Indtægt[[#This Row],[Budget]])-1),(Indtægt[[#This Row],[Aktuel periode]]/Indtægt[[#This Row],[Budget]])-1))),\"-\")","v":{"v":0,"d":"0.00%"}}]
[null,"Samlet salgsindtægt",null,{"$f":"SUBTOTAL(109,Indtægt[Forudgående periode])","v":0},{"$f":"SUBTOTAL(109,Indtægt[Budget])","v":0},{"$f":"SUBTOTAL(109,Indtægt[Aktuel periode])","v":0},{"$f":"SUBTOTAL(109,Indtægt[Aktuel periode som % af salg])","v":{"v":0,"d":"0.00%"}},{"$f":"SUBTOTAL(109,Indtægt[% ændret ift. forudgående periode])","v":{"v":0,"d":"0.00%"}},{"$f":"SUBTOTAL(109,Indtægt[% ændret ift. budget])","v":{"v":0,"d":"0.00%"}}]

{"sheet":"Udgifter","index":3,"n_rows":25,"n_cols":9,"rows_kept":25,"merged":[[0,7,2,8]]}
[null,{"$f":"Projektmappe_Titel","v":"Driftsregnskab"}]
[null,{"$f":"Firmanavn","v":"Firmanavn"},"Angivet i tusindedele"]
[null,"Driftsudgifter",{"$f":"IFERROR(Driftsudgifter[[#Totals],[Aktuel periode]],\"-\")","v":0}]
[null,"Udgiftstype","Beskrivelse","Forudgående periode","Budget","Aktuel periode","Aktuel periode som % af salg","% ændret ift. forudgående periode","% ændret ift. budget"]
[null,"Salg og marketing","Reklamer",{"$nulls":3},{"$f":"IFERROR(IF(Salgsomsætning=0,\"-\",Driftsudgifter[[#This Row],[Aktuel periode]]/Salgsomsætning),\"-\")","v":"-"},{"$f":"IFERROR(IF(Driftsudgifter[[#This Row],[Forudgående periode]]=Driftsudgifter[[#This Row],[Aktuel periode]],0,IF(Driftsudgifter[[#This Row],[Aktuel periode]]>Driftsudgifter[[#This Row],[Forudgående periode]],ABS((Driftsudgifter[[#This Row],[Aktuel periode]]/Driftsudgifter[[#This Row],[Forudgående periode]])-1),IF(AND(Driftsudgifter[[#This Row],[Aktuel periode]]<Driftsudgifter[[#This Row],[Forudgående periode]],Driftsudgifter[[#This Row],[Forudgående periode]]<0),-((Driftsudgifter[[#This Row],[Aktuel periode]]/Driftsudgifter[[#This Row],[Forudgående periode]])-1),(Driftsudgifter[[#This Row],[Aktuel periode]]/Driftsudgifter[[#This Row],[Forudgående periode]])-1))),\"-\")","v":{"v":0,"d":"0.00%"}},{"$f":"IFERROR(IF(Driftsudgifter[[#This Row],[Budget]]=Driftsudgifter[[#This Row],[Aktuel periode]],0,IF(Driftsudgifter[[#This Row],[Aktuel periode]]>Driftsudgifter[[#This Row],[Budget]],ABS((Driftsudgifter[[#This Row],[Aktuel periode]]/Driftsudgifter[[#This Row],[Budget]])-1),IF(AND(Driftsudgifter[[#This Row],[Aktuel periode]]<Driftsudgifter[[#This Row],[Budget]],Driftsudgifter[[#This Row],[Budget]]<0),-((Driftsudgifter[[#This Row],[Aktuel periode]]/Driftsudgifter[[#This Row],[Budget]])-1),(Driftsudgifter[[#This Row],[Aktuel periode]]/Driftsudgifter[[#This Row],[Budget]])-1))),\"-\")","v":{"v":0,"d":"0.00%"}}]
[null,"Salg og marketing","Direkte marketing",{"$nulls":3},{"$f":"IFERROR(IF(Salgsomsætning=0,\"-\",Driftsudgifter[[#This Row],[Aktuel periode]]/Salgsomsætning),\"-\")","v":"-"},{"$f":"IFERROR(IF(Driftsudgifter[[#This Row],[Forudgående periode]]=Driftsudgifter[[#This Row],[Aktuel periode]],0,IF(Driftsudgifter[[#This Row],[Aktuel periode]]>Driftsudgifter[[#This Row],[Forudgående periode]],ABS((Driftsudgifter[[#This Row],[Aktuel periode]]/Driftsudgifter[[#This Row],[Forudgående periode]])-1),IF(AND(Driftsudgifter[[#This Row],[Aktuel periode]]<Driftsudgifter[[#This Row],[Forudgående periode]],Driftsudgifter[[#This Row],[Forudgående periode]]<0),-((Driftsudgifter[[#This Row],[Aktuel periode]]/Driftsudgifter[[#This Row],[Forudgående periode]])-1),(Driftsudgifter[[#This Row],[Aktuel periode]]/Driftsudgifter[[#This Row],[Forudgående periode]])-1))),\"-\")","v":{"v":0,"d":"0.00%"}},{"$f":"IFERROR(IF(Driftsudgifter[[#This Row],[Budget]]=Driftsudgifter[[#This Row],[Aktuel periode]],0,IF(Driftsudgifter[[#This Row],[Aktuel periode]]>Driftsudgifter[[#This Row],[Budget]],ABS((Driftsudgifter[[#This Row],[Aktuel periode]]/Driftsudgifter[[#This Row],[Budget]])-1),IF(AND(Driftsudgifter[[#This Row],[Aktuel periode]]<Driftsudgifter[[#This Row],[Budget]],Driftsudgifter[[#This Row],[Budget]]<0),-((Driftsudgifter[[#This Row],[Aktuel periode]]/Driftsudgifter[[#This Row],[Budget]])-1),(Driftsudgifter[[#This Row],[Aktuel periode]]/Driftsudgifter[[#This Row],[Budget]])-1))),\"-\")","v":{"v":0,"d":"0.00%"}}]
[null,"Salg og marketing","Øvrige udgifter (angiv)",{"$nulls":3},{"$f":"IFERROR(IF(Salgsomsætning=0,\"-\",Driftsudgifter[[#This Row],[Aktuel periode]]/Salgsomsætning),\"-\")","v":"-"},{"$f":"IFERROR(IF(Driftsudgifter[[#This Row],[Forudgående periode]]=Driftsudgifter[[#This Row],[Aktuel periode]],0,IF(Driftsudgifter[[#This Row],[Aktuel periode]]>Driftsudgifter[[#This Row],[Forudgående periode]],ABS((Driftsudgifter[[#This Row],[Aktuel periode]]/Driftsudgifter[[#This Row],[Forudgående periode]])-1),IF(AND(Driftsudgifter[[#This Row],[Aktuel periode]]<Driftsudgifter[[#This Row],[Forudgående periode]],Driftsudgifter[[#This Row],[Forudgående periode]]<0),-((Driftsudgifter[[#This Row],[Aktuel periode]]/Driftsudgifter[[#This Row],[Forudgående periode]])-1),(Driftsudgifter[[#This Row],[Aktuel periode]]/Driftsudgifter[[#This Row],[Forudgående periode]])-1))),\"-\")","v":{"v":0,"d":"0.00%"}},{"$f":"IFERROR(IF(Driftsudgifter[[#This Row],[Budget]]=Driftsudgifter[[#This Row],[Aktuel periode]],0,IF(Driftsudgifter[[#This Row],[Aktuel periode]]>Driftsudgifter[[#This Row],[Budget]],ABS((Driftsudgifter[[#This Row],[Aktuel periode]]/Driftsudgifter[[#This Row],[Budget]])-1),IF(AND(Driftsudgifter[[#This Row],[Aktuel periode]]<Driftsudgifter[[#This Row],[Budget]],Driftsudgifter[[#This Row],[Budget]]<0),-((Driftsudgifter[[#This Row],[Aktuel periode]]/Driftsudgifter[[#This Row],[Budget]])-1),(Driftsudgifter[[#This Row],[Aktuel periode]]/Driftsudgifter[[#This Row],[Budget]])-1))),\"-\")","v":{"v":0,"d":"0.00%"}}]
[null,"Salg og marketing","Øvrige udgifter (angiv)",{"$nulls":3},{"$f":"IFERROR(IF(Salgsomsætning=0,\"-\",Driftsudgifter[[#This Row],[Aktuel periode]]/Salgsomsætning),\"-\")","v":"-"},{"$f":"IFERROR(IF(Driftsudgifter[[#This Row],[Forudgående periode]]=Driftsudgifter[[#This Row],[Aktuel periode]],0,IF(Driftsudgifter[[#This Row],[Aktuel periode]]>Driftsudgifter[[#This Row],[Forudgående periode]],ABS((Driftsudgifter[[#This Row],[Aktuel periode]]/Driftsudgifter[[#This Row],[Forudgående periode]])-1),IF(AND(Driftsudgifter[[#This Row],[Aktuel periode]]<Driftsudgifter[[#This Row],[Forudgående periode]],Driftsudgifter[[#This Row],[Forudgående periode]]<0),-((Driftsudgifter[[#This Row],[Aktuel periode]]/Driftsudgifter[[#This Row],[Forudgående periode]])-1),(Driftsudgifter[[#This Row],[Aktuel periode]]/Driftsudgifter[[#This Row],[Forudgående periode]])-1))),\"-\")","v":{"v":0,"d":"0.00%"}},{"$f":"IFERROR(IF(Driftsudgifter[[#This Row],[Budget]]=Driftsudgifter[[#This Row],[Aktuel periode]],0,IF(Driftsudgifter[[#This Row],[Aktuel periode]]>Driftsudgifter[[#This Row],[Budget]],ABS((Driftsudgifter[[#This Row],[Aktuel periode]]/Driftsudgifter[[#This Row],[Budget]])-1),IF(AND(Driftsudgifter[[#This Row],[Aktuel periode]]<Driftsudgifter[[#This Row],[Budget]],Driftsudgifter[[#This Row],[Budget]]<0),-((Driftsudgifter[[#This Row],[Aktuel periode]]/Driftsudgifter[[#This Row],[Budget]])-1),(Driftsudgifter[[#This Row],[Aktuel periode]]/Driftsudgifter[[#This Row],[Budget]])-1))),\"-\")","v":{"v":0,"d":"0.00%"}}]
[null,"Forskning og udvikling","Licenser til teknologi",{"$nulls":3},{"$f":"IFERROR(IF(Salgsomsætning=0,\"-\",Driftsudgifter[[#This Row],[Aktuel periode]]/Salgsomsætning),\"-\")","v":"-"},{"$f":"IFERROR(IF(Driftsudgifter[[#This Row],[Forudgående periode]]=Driftsudgifter[[#This Row],[Aktuel periode]],0,IF(Driftsudgifter[[#This Row],[Aktuel periode]]>Driftsudgifter[[#This Row],[Forudgående periode]],ABS((Driftsudgifter[[#This Row],[Aktuel periode]]/Driftsudgifter[[#This Row],[Forudgående periode]])-1),IF(AND(Driftsudgifter[[#This Row],[Aktuel periode]]<Driftsudgifter[[#This Row],[Forudgående periode]],Driftsudgifter[[#This Row],[Forudgående periode]]<0),-((Driftsudgifter[[#This Row],[Aktuel periode]]/Driftsudgifter[[#This Row],[Forudgående periode]])-1),(Driftsudgifter[[#This Row],[Aktuel periode]]/Driftsudgifter[[#This Row],[Forudgående periode]])-1))),\"-\")","v":{"v":0,"d":"0.00%"}},{"$f":"IFERROR(IF(Driftsudgifter[[#This Row],[Budget]]=Driftsudgifter[[#This Row],[Aktuel periode]],0,IF(Driftsudgifter[[#This Row],[Aktuel periode]]>Driftsudgifter[[#This Row],[Budget]],ABS((Driftsudgifter[[#This Row],[Aktuel periode]]/Driftsudgifter[[#This Row],[Budget]])-1),IF(AND(Driftsudgifter[[#This Row],[Aktuel periode]]<Driftsudgifter[[#This Row],[Budget]],Driftsudgifter[[#This Row],[Budget]]<0),-((Driftsudgifter[[#This Row],[Aktuel periode]]/Driftsudgifter[[#This Row],[Budget]])-1),(Driftsudgifter[[#This Row],[Aktuel periode]]/Driftsudgifter[[#This Row],[Budget]])-1))),\"-\")","v":{"v":0,"d":"0.00%"}}]
[null,"Forskning og udvikling","Patenter ",{"$nulls":3},{"$f":"IFERROR(IF(Salgsomsætning=0,\"-\",Driftsudgifter[[#This Row],[Aktuel periode]]/Salgsomsætning),\"-\")","v":"-"},{"$f":"IFERROR(IF(Driftsudgifter[[#This Row],[Forudgående periode]]=Driftsudgifter[[#This Row],[Aktuel periode]],0,IF(Driftsudgifter[[#This Row],[Aktuel periode]]>Driftsudgifter[[#This Row],[Forudgående periode]],ABS((Driftsudgifter[[#This Row],[Aktuel periode]]/Driftsudgifter[[#This Row],[Forudgående periode]])-1),IF(AND(Driftsudgifter[[#This Row],[Aktuel periode]]<Driftsudgifter[[#This Row],[Forudgående periode]],Driftsudgifter[[#This Row],[Forudgående periode]]<0),-((Driftsudgifter[[#This Row],[Aktuel periode]]/Driftsudgifter[[#This Row],[Forudgående periode]])-1),(Driftsudgifter[[#This Row],[Aktuel periode]]/Driftsudgifter[[#This Row],[Forudgående periode]])-1))),\"-\")","v":{"v":0,"d":"0.00%"}},{"$f":"IFERROR(IF(Driftsudgifter[[#This Row],[Budget]]=Driftsudgifter[[#This Row],[Aktuel periode]],0,IF(Driftsudgifter[[#This Row],[Aktuel periode]]>Driftsudgifter[[#This Row],[Budget]],ABS((Driftsudgifter[[#This Row],[Aktuel periode]]/Driftsudgifter[[#This Row],[Budget]])-1),IF(AND(Driftsudgifter[[#This Row],[Aktuel periode]]<Driftsudgifter[[#This Row],[Budget]],Driftsudgifter[[#This Row],[Budget]]<0),-((Driftsudgifter[[#This Row],[Aktuel periode]]/Driftsudgifter[[#This Row],[Budget]])-1),(Driftsudgifter[[#This Row],[Aktuel periode]]/Driftsudgifter[[#This Row],[Budget]])-1))),\"-\")","v":{"v":0,"d":"0.00%"}}]
[null,"Forskning og udvikling","Øvrige udgifter (angiv)",{"$nulls":3},{"$f":"IFERROR(IF(Salgsomsætning=0,\"-\",Driftsudgifter[[#This Row],[Aktuel periode]]/Salgsomsætning),\"-\")","v":"-"},{"$f":"IFERROR(IF(Driftsudgifter[[#This Row],[Forudgående periode]]=Driftsudgifter[[#This Row],[Aktuel periode]],0,IF(Driftsudgifter[[#This Row],[Aktuel periode]]>Driftsudgifter[[#This Row],[Forudgående periode]],ABS((Driftsudgifter[[#This Row],[Aktuel periode]]/Driftsudgifter[[#This Row],[Forudgående periode]])-1),IF(AND(Driftsudgifter[[#This Row],[Aktuel periode]]<Driftsudgifter[[#This Row],[Forudgående periode]],Driftsudgifter[[#This Row],[Forudgående periode]]<0),-((Driftsudgifter[[#This Row],[Aktuel periode]]/Driftsudgifter[[#This Row],[Forudgående periode]])-1),(Driftsudgifter[[#This Row],[Aktuel periode]]/Driftsudgifter[[#This Row],[Forudgående periode]])-1))),\"-\")","v":{"v":0,"d":"0.00%"}},{"$f":"IFERROR(IF(Driftsudgifter[[#This Row],[Budget]]=Driftsudgifter[[#This Row],[Aktuel periode]],0,IF(Driftsudgifter[[#This Row],[Aktuel periode]]>Driftsudgifter[[#This Row],[Budget]],ABS((Driftsudgifter[[#This Row],[Aktuel periode]]/Driftsudgifter[[#This Row],[Budget]])-1),IF(AND(Driftsudgifter[[#This Row],[Aktuel periode]]<Driftsudgifter[[#This Row],[Budget]],Driftsudgifter[[#This Row],[Budget]]<0),-((Driftsudgifter[[#This Row],[Aktuel periode]]/Driftsudgifter[[#This Row],[Budget]])-1),(Driftsudgifter[[#This Row],[Aktuel periode]]/Driftsudgifter[[#This Row],[Budget]])-1))),\"-\")","v":{"v":0,"d":"0.00%"}}]
[null,"Forskning og udvikling","Øvrige udgifter (angiv)",{"$nulls":3},{"$f":"IFERROR(IF(Salgsomsætning=0,\"-\",Driftsudgifter[[#This Row],[Aktuel periode]]/Salgsomsætning),\"-\")","v":"-"},{"$f":"IFERROR(IF(Driftsudgifter[[#This Row],[Forudgående periode]]=Driftsudgifter[[#This Row],[Aktuel periode]],0,IF(Driftsudgifter[[#This Row],[Aktuel periode]]>Driftsudgifter[[#This Row],[Forudgående periode]],ABS((Driftsudgifter[[#This Row],[Aktuel periode]]/Driftsudgifter[[#This Row],[Forudgående periode]])-1),IF(AND(Driftsudgifter[[#This Row],[Aktuel periode]]<Driftsudgifter[[#This Row],[Forudgående periode]],Driftsudgifter[[#This Row],[Forudgående periode]]<0),-((Driftsudgifter[[#This Row],[Aktuel periode]]/Driftsudgifter[[#This Row],[Forudgående periode]])-1),(Driftsudgifter[[#This Row],[Aktuel periode]]/Driftsudgifter[[#This Row],[Forudgående periode]])-1))),\"-\")","v":{"v":0,"d":"0.00%"}},{"$f":"IFERROR(IF(Driftsudgifter[[#This Row],[Budget]]=Driftsudgifter[[#This Row],[Aktuel periode]],0,IF(Driftsudgifter[[#This Row],[Aktuel periode]]>Driftsudgifter[[#This Row],[Budget]],ABS((Driftsudgifter[[#This Row],[Aktuel periode]]/Driftsudgifter[[#This Row],[Budget]])-1),IF(AND(Driftsudgifter[[#This Row],[Aktuel periode]]<Driftsudgifter[[#This Row],[Budget]],Driftsudgifter[[#This Row],[Budget]]<0),-((Driftsudgifter[[#This Row],[Aktuel periode]]/Driftsudgifter[[#This Row],[Budget]])-1),(Driftsudgifter[[#This Row],[Aktuel periode]]/Driftsudgifter[[#This Row],[Budget]])-1))),\"-\")","v":{"v":0,"d":"0.00%"}}]
[null,"Generelt og administrativt","Løn",{"$nulls":3},{"$f":"IFERROR(IF(Salgsomsætning=0,\"-\",Driftsudgifter[[#This Row],[Aktuel periode]]/Salgsomsætning),\"-\")","v":"-"},{"$f":"IFERROR(IF(Driftsudgifter[[#This Row],[Forudgående periode]]=Driftsudgifter[[#This Row],[Aktuel periode]],0,IF(Driftsudgifter[[#This Row],[Aktuel periode]]>Driftsudgifter[[#This Row],[Forudgående periode]],ABS((Driftsudgifter[[#This Row],[Aktuel periode]]/Driftsudgifter[[#This Row],[Forudgående periode]])-1),IF(AND(Driftsudgifter[[#This Row],[Aktuel periode]]<Driftsudgifter[[#This Row],[Forudgående periode]],Driftsudgifter[[#This Row],[Forudgående periode]]<0),-((Driftsudgifter[[#This Row],[Aktuel periode]]/Driftsudgifter[[#This Row],[Forudgående periode]])-1),(Driftsudgifter[[#This Row],[Aktuel periode]]/Driftsudgifter[[#This Row],[Forudgående periode]])-1))),\"-\")","v":{"v":0,"d":"0.00%"}},{"$f":"IFERROR(IF(Driftsudgifter[[#This Row],[Budget]]=Driftsudgifter[[#This Row],[Aktuel periode]],0,IF(Driftsudgifter[[#This Row],[Aktuel periode]]>Driftsudgifter[[#This Row],[Budget]],ABS((Driftsudgifter[[#This Row],[Aktuel periode]]/Driftsudgifter[[#This Row],[Budget]])-1),IF(AND(Driftsudgifter[[#This Row],[Aktuel periode]]<Driftsudgifter[[#This Row],[Budget]],Driftsudgifter[[#This Row],[Budget]]<0),-((Driftsudgifter[[#This Row],[Aktuel periode]]/Driftsudgifter[[#This Row],[Budget]])-1),(Driftsudgifter[[#This Row],[Aktuel periode]]/Driftsudgifter[[#This Row],[Budget]])-1))),\"-\")","v":{"v":0,"d":"0.00%"}}]
[null,"Generelt og administrativt","Eksterne tjenester",{"$nulls":3},{"$f":"IFERROR(IF(Salgsomsætning=0,\"-\",Driftsudgifter[[#This Row],[Aktuel periode]]/Salgsomsætning),\"-\")","v":"-"},{"$f":"IFERROR(IF(Driftsudgifter[[#This Row],[Forudgående periode]]=Driftsudgifter[[#This Row],[Aktuel periode]],0,IF(Driftsudgifter[[#This Row],[Aktuel periode]]>Driftsudgifter[[#This Row],[Forudgående periode]],ABS((Driftsudgifter[[#This Row],[Aktuel periode]]/Driftsudgifter[[#This Row],[Forudgående periode]])-1),IF(AND(Driftsudgifter[[#This Row],[Aktuel periode]]<Driftsudgifter[[#This Row],[Forudgående periode]],Driftsudgifter[[#This Row],[Forudgående periode]]<0),-((Driftsudgifter[[#This Row],[Aktuel periode]]/Driftsudgifter[[#This Row],[Forudgående periode]])-1),(Driftsudgifter[[#This Row],[Aktuel periode]]/Driftsudgifter[[#This Row],[Forudgående periode]])-1))),\"-\")","v":{"v":0,"d":"0.00%"}},{"$f":"IFERROR(IF(Driftsudgifter[[#This Row],[Budget]]=Driftsudgifter[[#This Row],[Aktuel periode]],0,IF(Driftsudgifter[[#This Row],[Aktuel periode]]>Driftsudgifter[[#This Row],[Budget]],ABS((Driftsudgifter[[#This Row],[Aktuel periode]]/Driftsudgifter[[#This Row],[Budget]])-1),IF(AND(Driftsudgifter[[#This Row],[Aktuel periode]]<Driftsudgifter[[#This Row],[Budget]],Driftsudgifter[[#This Row],[Budget]]<0),-((Driftsudgifter[[#This Row],[Aktuel periode]]/Driftsudgifter[[#This Row],[Budget]])-1),(Driftsudgifter[[#This Row],[Aktuel periode]]/Driftsudgifter[[#This Row],[Budget]])-1))),\"-\")","v":{"v":0,"d":"0.00%"}}]
[null,"Generelt og administrativt","Forsyninger",{"$nulls":3},{"$f":"IFERROR(IF(Salgsomsætning=0,\"-\",Driftsudgifter[[#This Row],[Aktuel periode]]/Salgsomsætning),\"-\")","v":"-"},{"$f":"IFERROR(IF(Driftsudgifter[[#This Row],[Forudgående periode]]=Driftsudgifter[[#This Row],[Aktuel periode]],0,IF(Driftsudgifter[[#This Row],[Aktuel periode]]>Driftsudgifter[[#This Row],[Forudgående periode]],ABS((Driftsudgifter[[#This Row],[Aktuel periode]]/Driftsudgifter[[#This Row],[Forudgående periode]])-1),IF(AND(Driftsudgifter[[#This Row],[Aktuel periode]]<Driftsudgifter[[#This Row],[Forudgående periode]],Driftsudgifter[[#This Row],[Forudgående periode]]<0),-((Driftsudgifter[[#This Row],[Aktuel periode]]/Driftsudgifter[[#This Row],[Forudgående periode]])-1),(Driftsudgifter[[#This Row],[Aktuel periode]]/Driftsudgifter[[#This Row],[Forudgående periode]])-1))),\"-\")","v":{"v":0,"d":"0.00%"}},{"$f":"IFERROR(IF(Driftsudgifter[[#This Row],[Budget]]=Driftsudgifter[[#This Row],[Aktuel periode]],0,IF(Driftsudgifter[[#This Row],[Aktuel periode]]>Driftsudgifter[[#This Row],[Budget]],ABS((Driftsudgifter[[#This Row],[Aktuel periode]]/Driftsudgifter[[#This Row],[Budget]])-1),IF(AND(Driftsudgifter[[#This Row],[Aktuel periode]]<Driftsudgifter[[#This Row],[Budget]],Driftsudgifter[[#This Row],[Budget]]<0),-((Driftsudgifter[[#This Row],[Aktuel periode]]/Driftsudgifter[[#This Row],[Budget]])-1),(Driftsudgifter[[#This Row],[Aktuel periode]]/Driftsudgifter[[#This Row],[Budget]])-1))),\"-\")","v":{"v":0,"d":"0.00%"}}]
[null,"Generelt og administrativt","Måltider og underholdning",{"$nulls":3},{"$f":"IFERROR(IF(Salgsomsætning=0,\"-\",Driftsudgifter[[#This Row],[Aktuel periode]]/Salgsomsætning),\"-\")","v":"-"},{"$f":"IFERROR(IF(Driftsudgifter[[#This Row],[Forudgående periode]]=Driftsudgifter[[#This Row],[Aktuel periode]],0,IF(Driftsudgifter[[#This Row],[Aktuel periode]]>Driftsudgifter[[#This Row],[Forudgående periode]],ABS((Driftsudgifter[[#This Row],[Aktuel periode]]/Driftsudgifter[[#This Row],[Forudgående periode]])-1),IF(AND(Driftsudgifter[[#This Row],[Aktuel periode]]<Driftsudgifter[[#This Row],[Forudgående periode]],Driftsudgifter[[#This Row],[Forudgående periode]]<0),-((Driftsudgifter[[#This Row],[Aktuel periode]]/Driftsudgifter[[#This Row],[Forudgående periode]])-1),(Driftsudgifter[[#This Row],[Aktuel periode]]/Driftsudgifter[[#This Row],[Forudgående periode]])-1))),\"-\")","v":{"v":0,"d":"0.00%"}},{"$f":"IFERROR(IF(Driftsudgifter[[#This Row],[Budget]]=Driftsudgifter[[#This Row],[Aktuel periode]],0,IF(Driftsudgifter[[#This Row],[Aktuel periode]]>Driftsudgifter[[#This Row],[Budget]],ABS((Driftsudgifter[[#This Row],[Aktuel periode]]/Driftsudgifter[[#This Row],[Budget]])-1),IF(AND(Driftsudgifter[[#This Row],[Aktuel periode]]<Driftsudgifter[[#This Row],[Budget]],Driftsudgifter[[#This Row],[Budget]]<0),-((Driftsudgifter[[#This Row],[Aktuel periode]]/Driftsudgifter[[#This Row],[Budget]])-1),(Driftsudgifter[[#This Row],[Aktuel periode]]/Driftsudgifter[[#This Row],[Budget]])-1))),\"-\")","v":{"v":0,"d":"0.00%"}}]
[null,"Generelt og administrativt","Leje",{"$nulls":3},{"$f":"IFERROR(IF(Salgsomsætning=0,\"-\",Driftsudgifter[[#This Row],[Aktuel periode]]/Salgsomsætning),\"-\")","v":"-"},{"$f":"IFERROR(IF(Driftsudgifter[[#This Row],[Forudgående periode]]=Driftsudgifter[[#This Row],[Aktuel periode]],0,IF(Driftsudgifter[[#This Row],[Aktuel periode]]>Driftsudgifter[[#This Row],[Forudgående periode]],ABS((Driftsudgifter[[#This Row],[Aktuel periode]]/Driftsudgifter[[#This Row],[Forudgående periode]])-1),IF(AND(Driftsudgifter[[#This Row],[Aktuel periode]]<Driftsudgifter[[#This Row],[Forudgående periode]],Driftsudgifter[[#This Row],[Forudgående periode]]<0),-((Driftsudgifter[[#This Row],[Aktuel periode]]/Driftsudgifter[[#This Row],[Forudgående periode]])-1),(Driftsudgifter[[#This Row],[Aktuel periode]]/Driftsudgifter[[#This Row],[Forudgående periode]])-1))),\"-\")","v":{"v":0,"d":"0.00%"}},{"$f":"IFERROR(IF(Driftsudgifter[[#This Row],[Budget]]=Driftsudgifter[[#This Row],[Aktuel periode]],0,IF(Driftsudgifter[[#This Row],[Aktuel periode]]>Driftsudgifter[[#This Row],[Budget]],ABS((Driftsudgifter[[#This Row],[Aktuel periode]]/Driftsudgifter[[#This Row],[Budget]])-1),IF(AND(Driftsudgifter[[#This Row],[Aktuel periode]]<Driftsudgifter[[#This Row],[Budget]],Driftsudgifter[[#This Row],[Budget]]<0),-((Driftsudgifter[[#This Row],[Aktuel periode]]/Driftsudgifter[[#This Row],[Budget]])-1),(Driftsudgifter[[#This Row],[Aktuel periode]]/Driftsudgifter[[#This Row],[Budget]])-1))),\"-\")","v":{"v":0,"d":"0.00%"}}]
[null,"Generelt og administrativt","Telefonnummer",{"$nulls":3},{"$f":"IFERROR(IF(Salgsomsætning=0,\"-\",Driftsudgifter[[#This Row],[Aktuel periode]]/Salgsomsætning),\"-\")","v":"-"},{"$f":"IFERROR(IF(Driftsudgifter[[#This Row],[Forudgående periode]]=Driftsudgifter[[#This Row],[Aktuel periode]],0,IF(Driftsudgifter[[#This Row],[Aktuel periode]]>Driftsudgifter[[#This Row],[Forudgående periode]],ABS((Driftsudgifter[[#This Row],[Aktuel periode]]/Driftsudgifter[[#This Row],[Forudgående periode]])-1),IF(AND(Driftsudgifter[[#This Row],[Aktuel periode]]<Driftsudgifter[[#This Row],[Forudgående periode]],Driftsudgifter[[#This Row],[Forudgående periode]]<0),-((Driftsudgifter[[#This Row],[Aktuel periode]]/Driftsudgifter[[#This Row],[Forudgående periode]])-1),(Driftsudgifter[[#This Row],[Aktuel periode]]/Driftsudgifter[[#This Row],[Forudgående periode]])-1))),\"-\")","v":{"v":0,"d":"0.00%"}},{"$f":"IFERROR(IF(Driftsudgifter[[#This Row],[Budget]]=Driftsudgifter[[#This Row],[Aktuel periode]],0,IF(Driftsudgifter[[#This Row],[Aktuel periode]]>Driftsudgifter[[#This Row],[Budget]],ABS((Driftsudgifter[[#This Row],[Aktuel periode]]/Driftsudgifter[[#This Row],[Budget]])-1),IF(AND(Driftsudgifter[[#This Row],[Aktuel periode]]<Driftsudgifter[[#This Row],[Budget]],Driftsudgifter[[#This Row],[Budget]]<0),-((Driftsudgifter[[#This Row],[Aktuel periode]]/Driftsudgifter[[#This Row],[Budget]])-1),(Driftsudgifter[[#This Row],[Aktuel periode]]/Driftsudgifter[[#This Row],[Budget]])-1))),\"-\")","v":{"v":0,"d":"0.00%"}}]
[null,"Generelt og administrativt","El, vand og varme",{"$nulls":3},{"$f":"IFERROR(IF(Salgsomsætning=0,\"-\",Driftsudgifter[[#This Row],[Aktuel periode]]/Salgsomsætning),\"-\")","v":"-"},{"$f":"IFERROR(IF(Driftsudgifter[[#This Row],[Forudgående periode]]=Driftsudgifter[[#This Row],[Aktuel periode]],0,IF(Driftsudgifter[[#This Row],[Aktuel periode]]>Driftsudgifter[[#This Row],[Forudgående periode]],ABS((Driftsudgifter[[#This Row],[Aktuel periode]]/Driftsudgifter[[#This Row],[Forudgående periode]])-1),IF(AND(Driftsudgifter[[#This Row],[Aktuel periode]]<Driftsudgifter[[#This Row],[Forudgående periode]],Driftsudgifter[[#This Row],[Forudgående periode]]<0),-((Driftsudgifter[[#This Row],[Aktuel periode]]/Driftsudgifter[[#This Row],[Forudgående periode]])-1),(Driftsudgifter[[#This Row],[Aktuel periode]]/Driftsudgifter[[#This Row],[Forudgående periode]])-1))),\"-\")","v":{"v":0,"d":"0.00%"}},{"$f":"IFERROR(IF(Driftsudgifter[[#This Row],[Budget]]=Driftsudgifter[[#This Row],[Aktuel periode]],0,IF(Driftsudgifter[[#This Row],[Aktuel periode]]>Driftsudgifter[[#This Row],[Budget]],ABS((Driftsudgifter[[#This Row],[Aktuel periode]]/Driftsudgifter[[#This Row],[Budget]])-1),IF(AND(Driftsudgifter[[#This Row],[Aktuel periode]]<Driftsudgifter[[#This Row],[Budget]],Driftsudgifter[[#This Row],[Budget]]<0),-((Driftsudgifter[[#This Row],[Aktuel periode]]/Driftsudgifter[[#This Row],[Budget]])-1),(Driftsudgifter[[#This Row],[Aktuel periode]]/Driftsudgifter[[#This Row],[Budget]])-1))),\"-\")","v":{"v":0,"d":"0.00%"}}]
[null,"Generelt og administrativt","Afskrivning",{"$nulls":3},{"$f":"IFERROR(IF(Salgsomsætning=0,\"-\",Driftsudgifter[[#This Row],[Aktuel periode]]/Salgsomsætning),\"-\")","v":"-"},{"$f":"IFERROR(IF(Driftsudgifter[[#This Row],[Forudgående periode]]=Driftsudgifter[[#This Row],[Aktuel periode]],0,IF(Driftsudgifter[[#This Row],[Aktuel periode]]>Driftsudgifter[[#This Row],[Forudgående periode]],ABS((Driftsudgifter[[#This Row],[Aktuel periode]]/Driftsudgifter[[#This Row],[Forudgående periode]])-1),IF(AND(Driftsudgifter[[#This Row],[Aktuel periode]]<Driftsudgifter[[#This Row],[Forudgående periode]],Driftsudgifter[[#This Row],[Forudgående periode]]<0),-((Driftsudgifter[[#This Row],[Aktuel periode]]/Driftsudgifter[[#This Row],[Forudgående periode]])-1),(Driftsudgifter[[#This Row],[Aktuel periode]]/Driftsudgifter[[#This Row],[Forudgående periode]])-1))),\"-\")","v":{"v":0,"d":"0.00%"}},{"$f":"IFERROR(IF(Driftsudgifter[[#This Row],[Budget]]=Driftsudgifter[[#This Row],[Aktuel periode]],0,IF(Driftsudgifter[[#This Row],[Aktuel periode]]>Driftsudgifter[[#This Row],[Budget]],ABS((Driftsudgifter[[#This Row],[Aktuel periode]]/Driftsudgifter[[#This Row],[Budget]])-1),IF(AND(Driftsudgifter[[#This Row],[Aktuel periode]]<Driftsudgifter[[#This Row],[Budget]],Driftsudgifter[[#This Row],[Budget]]<0),-((Driftsudgifter[[#This Row],[Aktuel periode]]/Driftsudgifter[[#This Row],[Budget]])-1),(Driftsudgifter[[#This Row],[Aktuel periode]]/Driftsudgifter[[#This Row],[Budget]])-1))),\"-\")","v":{"v":0,"d":"0.00%"}}]
[null,"Generelt og administrativt","Forsikring",{"$nulls":3},{"$f":"IFERROR(IF(Salgsomsætning=0,\"-\",Driftsudgifter[[#This Row],[Aktuel periode]]/Salgsomsætning),\"-\")","v":"-"},{"$f":"IFERROR(IF(Driftsudgifter[[#This Row],[Forudgående periode]]=Driftsudgifter[[#This Row],[Aktuel periode]],0,IF(Driftsudgifter[[#This Row],[Aktuel periode]]>Driftsudgifter[[#This Row],[Forudgående periode]],ABS((Driftsudgifter[[#This Row],[Aktuel periode]]/Driftsudgifter[[#This Row],[Forudgående periode]])-1),IF(AND(Driftsudgifter[[#This Row],[Aktuel periode]]<Driftsudgifter[[#This Row],[Forudgående periode]],Driftsudgifter[[#This Row],[Forudgående periode]]<0),-((Driftsudgifter[[#This Row],[Aktuel periode]]/Driftsudgifter[[#This Row],[Forudgående periode]])-1),(Driftsudgifter[[#This Row],[Aktuel periode]]/Driftsudgifter[[#This Row],[Forudgående periode]])-1))),\"-\")","v":{"v":0,"d":"0.00%"}},{"$f":"IFERROR(IF(Driftsudgifter[[#This Row],[Budget]]=Driftsudgifter[[#This Row],[Aktuel periode]],0,IF(Driftsudgifter[[#This Row],[Aktuel periode]]>Driftsudgifter[[#This Row],[Budget]],ABS((Driftsudgifter[[#This Row],[Aktuel periode]]/Driftsudgifter[[#This Row],[Budget]])-1),IF(AND(Driftsudgifter[[#This Row],[Aktuel periode]]<Driftsudgifter[[#This Row],[Budget]],Driftsudgifter[[#This Row],[Budget]]<0),-((Driftsudgifter[[#This Row],[Aktuel periode]]/Driftsudgifter[[#This Row],[Budget]])-1),(Driftsudgifter[[#This Row],[Aktuel periode]]/Driftsudgifter[[#This Row],[Budget]])-1))),\"-\")","v":{"v":0,"d":"0.00%"}}]
[null,"Generelt og administrativt","Reparationer og vedligeholdelse",{"$nulls":3},{"$f":"IFERROR(IF(Salgsomsætning=0,\"-\",Driftsudgifter[[#This Row],[Aktuel periode]]/Salgsomsætning),\"-\")","v":"-"},{"$f":"IFERROR(IF(Driftsudgifter[[#This Row],[Forudgående periode]]=Driftsudgifter[[#This Row],[Aktuel periode]],0,IF(Driftsudgifter[[#This Row],[Aktuel periode]]>Driftsudgifter[[#This Row],[Forudgående periode]],ABS((Driftsudgifter[[#This Row],[Aktuel periode]]/Driftsudgifter[[#This Row],[Forudgående periode]])-1),IF(AND(Driftsudgifter[[#This Row],[Aktuel periode]]<Driftsudgifter[[#This Row],[Forudgående periode]],Driftsudgifter[[#This Row],[Forudgående periode]]<0),-((Driftsudgifter[[#This Row],[Aktuel periode]]/Driftsudgifter[[#This Row],[Forudgående periode]])-1),(Driftsudgifter[[#This Row],[Aktuel periode]]/Driftsudgifter[[#This Row],[Forudgående periode]])-1))),\"-\")","v":{"v":0,"d":"0.00%"}},{"$f":"IFERROR(IF(Driftsudgifter[[#This Row],[Budget]]=Driftsudgifter[[#This Row],[Aktuel periode]],0,IF(Driftsudgifter[[#This Row],[Aktuel periode]]>Driftsudgifter[[#This Row],[Budget]],ABS((Driftsudgifter[[#This Row],[Aktuel periode]]/Driftsudgifter[[#This Row],[Budget]])-1),IF(AND(Driftsudgifter[[#This Row],[Aktuel periode]]<Driftsudgifter[[#This Row],[Budget]],Driftsudgifter[[#This Row],[Budget]]<0),-((Driftsudgifter[[#This Row],[Aktuel periode]]/Driftsudgifter[[#This Row],[Budget]])-1),(Driftsudgifter[[#This Row],[Aktuel periode]]/Driftsudgifter[[#This Row],[Budget]])-1))),\"-\")","v":{"v":0,"d":"0.00%"}}]
[null,"Generelt og administrativt","Øvrige udgifter (angiv)",{"$nulls":3},{"$f":"IFERROR(IF(Salgsomsætning=0,\"-\",Driftsudgifter[[#This Row],[Aktuel periode]]/Salgsomsætning),\"-\")","v":"-"},{"$f":"IFERROR(IF(Driftsudgifter[[#This Row],[Forudgående periode]]=Driftsudgifter[[#This Row],[Aktuel periode]],0,IF(Driftsudgifter[[#This Row],[Aktuel periode]]>Driftsudgifter[[#This Row],[Forudgående periode]],ABS((Driftsudgifter[[#This Row],[Aktuel periode]]/Driftsudgifter[[#This Row],[Forudgående periode]])-1),IF(AND(Driftsudgifter[[#This Row],[Aktuel periode]]<Driftsudgifter[[#This Row],[Forudgående periode]],Driftsudgifter[[#This Row],[Forudgående periode]]<0),-((Driftsudgifter[[#This Row],[Aktuel periode]]/Driftsudgifter[[#This Row],[Forudgående periode]])-1),(Driftsudgifter[[#This Row],[Aktuel periode]]/Driftsudgifter[[#This Row],[Forudgående periode]])-1))),\"-\")","v":{"v":0,"d":"0.00%"}},{"$f":"IFERROR(IF(Driftsudgifter[[#This Row],[Budget]]=Driftsudgifter[[#This Row],[Aktuel periode]],0,IF(Driftsudgifter[[#This Row],[Aktuel periode]]>Driftsudgifter[[#This Row],[Budget]],ABS((Driftsudgifter[[#This Row],[Aktuel periode]]/Driftsudgifter[[#This Row],[Budget]])-1),IF(AND(Driftsudgifter[[#This Row],[Aktuel periode]]<Driftsudgifter[[#This Row],[Budget]],Driftsudgifter[[#This Row],[Budget]]<0),-((Driftsudgifter[[#This Row],[Aktuel periode]]/Driftsudgifter[[#This Row],[Budget]])-1),(Driftsudgifter[[#This Row],[Aktuel periode]]/Driftsudgifter[[#This Row],[Budget]])-1))),\"-\")","v":{"v":0,"d":"0.00%"}}]
[null,"Generelt og administrativt","Øvrige udgifter (angiv)",{"$nulls":3},{"$f":"IFERROR(IF(Salgsomsætning=0,\"-\",Driftsudgifter[[#This Row],[Aktuel periode]]/Salgsomsætning),\"-\")","v":"-"},{"$f":"IFERROR(IF(Driftsudgifter[[#This Row],[Forudgående periode]]=Driftsudgifter[[#This Row],[Aktuel periode]],0,IF(Driftsudgifter[[#This Row],[Aktuel periode]]>Driftsudgifter[[#This Row],[Forudgående periode]],ABS((Driftsudgifter[[#This Row],[Aktuel periode]]/Driftsudgifter[[#This Row],[Forudgående periode]])-1),IF(AND(Driftsudgifter[[#This Row],[Aktuel periode]]<Driftsudgifter[[#This Row],[Forudgående periode]],Driftsudgifter[[#This Row],[Forudgående periode]]<0),-((Driftsudgifter[[#This Row],[Aktuel periode]]/Driftsudgifter[[#This Row],[Forudgående periode]])-1),(Driftsudgifter[[#This Row],[Aktuel periode]]/Driftsudgifter[[#This Row],[Forudgående periode]])-1))),\"-\")","v":{"v":0,"d":"0.00%"}},{"$f":"IFERROR(IF(Driftsudgifter[[#This Row],[Budget]]=Driftsudgifter[[#This Row],[Aktuel periode]],0,IF(Driftsudgifter[[#This Row],[Aktuel periode]]>Driftsudgifter[[#This Row],[Budget]],ABS((Driftsudgifter[[#This Row],[Aktuel periode]]/Driftsudgifter[[#This Row],[Budget]])-1),IF(AND(Driftsudgifter[[#This Row],[Aktuel periode]]<Driftsudgifter[[#This Row],[Budget]],Driftsudgifter[[#This Row],[Budget]]<0),-((Driftsudgifter[[#This Row],[Aktuel periode]]/Driftsudgifter[[#This Row],[Budget]])-1),(Driftsudgifter[[#This Row],[Aktuel periode]]/Driftsudgifter[[#This Row],[Budget]])-1))),\"-\")","v":{"v":0,"d":"0.00%"}}]
[null,"Samlede driftsudgifter",null,{"$f":"SUBTOTAL(109,Driftsudgifter[Forudgående periode])","v":0},{"$f":"SUBTOTAL(109,Driftsudgifter[Budget])","v":0},{"$f":"SUBTOTAL(109,Driftsudgifter[Aktuel periode])","v":0},{"$f":"SUBTOTAL(109,Driftsudgifter[Aktuel periode som % af salg])","v":{"v":0,"d":"0.00%"}},{"$f":"SUBTOTAL(109,Driftsudgifter[% ændret ift. forudgående periode])","v":{"v":0,"d":"0.00%"}},{"$f":"SUBTOTAL(109,Driftsudgifter[% ændret ift. budget])","v":{"v":0,"d":"0.00%"}}]

{"sheet":"Skat","index":4,"n_rows":10,"n_cols":9,"rows_kept":10,"merged":[[0,7,2,8]]}
[null,{"$f":"Projektmappe_Titel","v":"Driftsregnskab"}]
[null,{"$f":"Firmanavn","v":"Firmanavn"},"Angivet i tusindedele"]
[null,"Skat",{"$f":"IFERROR(Skatter[[#Totals],[Aktuel periode]],\"-\")","v":0}]
[null,"Type","Beskrivelse","Forudgående periode","Budget","Aktuel periode","Aktuel periode som % af salg","% ændret ift. forudgående periode","% ændret ift. budget"]
[null,"Skatter","Indkomstskat",{"$nulls":3},{"$f":"IFERROR(IF(Salgsomsætning=0,\"-\",Skatter[[#This Row],[Aktuel periode]]/Salgsomsætning),\"-\")","v":"-"},{"$f":"IFERROR(IF(Skatter[[#This Row],[Forudgående periode]]=Skatter[[#This Row],[Aktuel periode]],0,IF(Skatter[[#This Row],[Aktuel periode]]>Skatter[[#This Row],[Forudgående periode]],ABS((Skatter[[#This Row],[Aktuel periode]]/Skatter[[#This Row],[Forudgående periode]])-1),IF(AND(Skatter[[#This Row],[Aktuel periode]]<Skatter[[#This Row],[Forudgående periode]],Skatter[[#This Row],[Forudgående periode]]<0),-((Skatter[[#This Row],[Aktuel periode]]/Skatter[[#This Row],[Forudgående periode]])-1),(Skatter[[#This Row],[Aktuel periode]]/Skatter[[#This Row],[Forudgående periode]])-1))),\"-\")","v":{"v":0,"d":"0.00%"}},{"$f":"IFERROR(IF(Skatter[[#This Row],[Budget]]=Skatter[[#This Row],[Aktuel periode]],0,IF(Skatter[[#This Row],[Aktuel periode]]>Skatter[[#This Row],[Budget]],ABS((Skatter[[#This Row],[Aktuel periode]]/Skatter[[#This Row],[Budget]])-1),IF(AND(Skatter[[#This Row],[Aktuel periode]]<Skatter[[#This Row],[Budget]],Skatter[[#This Row],[Budget]]<0),-((Skatter[[#This Row],[Aktuel periode]]/Skatter[[#This Row],[Budget]])-1),(Skatter[[#This Row],[Aktuel periode]]/Skatter[[#This Row],[Budget]])-1))),\"-\")","v":{"v":0,"d":"0.00%"}}]
[null,"Skatter","Lønskat",{"$nulls":3},{"$f":"IFERROR(IF(Salgsomsætning=0,\"-\",Skatter[[#This Row],[Aktuel periode]]/Salgsomsætning),\"-\")","v":"-"},{"$f":"IFERROR(IF(Skatter[[#This Row],[Forudgående periode]]=Skatter[[#This Row],[Aktuel periode]],0,IF(Skatter[[#This Row],[Aktuel periode]]>Skatter[[#This Row],[Forudgående periode]],ABS((Skatter[[#This Row],[Aktuel periode]]/Skatter[[#This Row],[Forudgående periode]])-1),IF(AND(Skatter[[#This Row],[Aktuel periode]]<Skatter[[#This Row],[Forudgående periode]],Skatter[[#This Row],[Forudgående periode]]<0),-((Skatter[[#This Row],[Aktuel periode]]/Skatter[[#This Row],[Forudgående periode]])-1),(Skatter[[#This Row],[Aktuel periode]]/Skatter[[#This Row],[Forudgående periode]])-1))),\"-\")","v":{"v":0,"d":"0.00%"}},{"$f":"IFERROR(IF(Skatter[[#This Row],[Budget]]=Skatter[[#This Row],[Aktuel periode]],0,IF(Skatter[[#This Row],[Aktuel periode]]>Skatter[[#This Row],[Budget]],ABS((Skatter[[#This Row],[Aktuel periode]]/Skatter[[#This Row],[Budget]])-1),IF(AND(Skatter[[#This Row],[Aktuel periode]]<Skatter[[#This Row],[Budget]],Skatter[[#This Row],[Budget]]<0),-((Skatter[[#This Row],[Aktuel periode]]/Skatter[[#This Row],[Budget]])-1),(Skatter[[#This Row],[Aktuel periode]]/Skatter[[#This Row],[Budget]])-1))),\"-\")","v":{"v":0,"d":"0.00%"}}]
[null,"Skatter","Ejendomsskat",{"$nulls":3},{"$f":"IFERROR(IF(Salgsomsætning=0,\"-\",Skatter[[#This Row],[Aktuel periode]]/Salgsomsætning),\"-\")","v":"-"},{"$f":"IFERROR(IF(Skatter[[#This Row],[Forudgående periode]]=Skatter[[#This Row],[Aktuel periode]],0,IF(Skatter[[#This Row],[Aktuel periode]]>Skatter[[#This Row],[Forudgående periode]],ABS((Skatter[[#This Row],[Aktuel periode]]/Skatter[[#This Row],[Forudgående periode]])-1),IF(AND(Skatter[[#This Row],[Aktuel periode]]<Skatter[[#This Row],[Forudgående periode]],Skatter[[#This Row],[Forudgående periode]]<0),-((Skatter[[#This Row],[Aktuel periode]]/Skatter[[#This Row],[Forudgående periode]])-1),(Skatter[[#This Row],[Aktuel periode]]/Skatter[[#This Row],[Forudgående periode]])-1))),\"-\")","v":{"v":0,"d":"0.00%"}},{"$f":"IFERROR(IF(Skatter[[#This Row],[Budget]]=Skatter[[#This Row],[Aktuel periode]],0,IF(Skatter[[#This Row],[Aktuel periode]]>Skatter[[#This Row],[Budget]],ABS((Skatter[[#This Row],[Aktuel periode]]/Skatter[[#This Row],[Budget]])-1),IF(AND(Skatter[[#This Row],[Aktuel periode]]<Skatter[[#This Row],[Budget]],Skatter[[#This Row],[Budget]]<0),-((Skatter[[#This Row],[Aktuel periode]]/Skatter[[#This Row],[Budget]])-1),(Skatter[[#This Row],[Aktuel periode]]/Skatter[[#This Row],[Budget]])-1))),\"-\")","v":{"v":0,"d":"0.00%"}}]
[null,"Skatter","Andre skattetyper (angiv)",{"$nulls":3},{"$f":"IFERROR(IF(Salgsomsætning=0,\"-\",Skatter[[#This Row],[Aktuel periode]]/Salgsomsætning),\"-\")","v":"-"},{"$f":"IFERROR(IF(Skatter[[#This Row],[Forudgående periode]]=Skatter[[#This Row],[Aktuel periode]],0,IF(Skatter[[#This Row],[Aktuel periode]]>Skatter[[#This Row],[Forudgående periode]],ABS((Skatter[[#This Row],[Aktuel periode]]/Skatter[[#This Row],[Forudgående periode]])-1),IF(AND(Skatter[[#This Row],[Aktuel periode]]<Skatter[[#This Row],[Forudgående periode]],Skatter[[#This Row],[Forudgående periode]]<0),-((Skatter[[#This Row],[Aktuel periode]]/Skatter[[#This Row],[Forudgående periode]])-1),(Skatter[[#This Row],[Aktuel periode]]/Skatter[[#This Row],[Forudgående periode]])-1))),\"-\")","v":{"v":0,"d":"0.00%"}},{"$f":"IFERROR(IF(Skatter[[#This Row],[Budget]]=Skatter[[#This Row],[Aktuel periode]],0,IF(Skatter[[#This Row],[Aktuel periode]]>Skatter[[#This Row],[Budget]],ABS((Skatter[[#This Row],[Aktuel periode]]/Skatter[[#This Row],[Budget]])-1),IF(AND(Skatter[[#This Row],[Aktuel periode]]<Skatter[[#This Row],[Budget]],Skatter[[#This Row],[Budget]]<0),-((Skatter[[#This Row],[Aktuel periode]]/Skatter[[#This Row],[Budget]])-1),(Skatter[[#This Row],[Aktuel periode]]/Skatter[[#This Row],[Budget]])-1))),\"-\")","v":{"v":0,"d":"0.00%"}}]
[null,"Skatter","Andre skattetyper (angiv)",{"$nulls":3},{"$f":"IFERROR(IF(Salgsomsætning=0,\"-\",Skatter[[#This Row],[Aktuel periode]]/Salgsomsætning),\"-\")","v":"-"},{"$f":"IFERROR(IF(Skatter[[#This Row],[Forudgående periode]]=Skatter[[#This Row],[Aktuel periode]],0,IF(Skatter[[#This Row],[Aktuel periode]]>Skatter[[#This Row],[Forudgående periode]],ABS((Skatter[[#This Row],[Aktuel periode]]/Skatter[[#This Row],[Forudgående periode]])-1),IF(AND(Skatter[[#This Row],[Aktuel periode]]<Skatter[[#This Row],[Forudgående periode]],Skatter[[#This Row],[Forudgående periode]]<0),-((Skatter[[#This Row],[Aktuel periode]]/Skatter[[#This Row],[Forudgående periode]])-1),(Skatter[[#This Row],[Aktuel periode]]/Skatter[[#This Row],[Forudgående periode]])-1))),\"-\")","v":{"v":0,"d":"0.00%"}},{"$f":"IFERROR(IF(Skatter[[#This Row],[Budget]]=Skatter[[#This Row],[Aktuel periode]],0,IF(Skatter[[#This Row],[Aktuel periode]]>Skatter[[#This Row],[Budget]],ABS((Skatter[[#This Row],[Aktuel periode]]/Skatter[[#This Row],[Budget]])-1),IF(AND(Skatter[[#This Row],[Aktuel periode]]<Skatter[[#This Row],[Budget]],Skatter[[#This Row],[Budget]]<0),-((Skatter[[#This Row],[Aktuel periode]]/Skatter[[#This Row],[Budget]])-1),(Skatter[[#This Row],[Aktuel periode]]/Skatter[[#This Row],[Budget]])-1))),\"-\")","v":{"v":0,"d":"0.00%"}}]
[null,"Samlet skat",null,{"$f":"SUBTOTAL(109,Skatter[Forudgående periode])","v":0},{"$f":"SUBTOTAL(109,Skatter[Budget])","v":0},{"$f":"SUBTOTAL(109,Skatter[Aktuel periode])","v":0},{"$f":"IFERROR(SUBTOTAL(109,Skatter[Aktuel periode som % af salg]),\"-\")","v":{"v":0,"d":"0.00%"}},{"$f":"SUBTOTAL(109,Skatter[% ændret ift. forudgående periode])","v":{"v":0,"d":"0.00%"}},{"$f":"SUBTOTAL(109,Skatter[% ændret ift. budget])","v":{"v":0,"d":"0.00%"}}]

{"sheet":"Kategorier","index":5,"n_rows":8,"n_cols":2,"rows_kept":8}
[null,"Kategorier"]
[null,"Salgsomsætning"]
[null,"Salgsomkostninger"]
[null,"Indtægter"]
[null,"Salg og marketing"]
[null,"Forskning og udvikling"]
[null,"Generelt og administrativt"]
[null,"Skatter"]